[Event "Titled Tuesday Blitz May 9 Late 2023"]
[White "Plotnikov, Pavel"]
[Black "mjelcic"]
[WhiteFideId "4170342"]
[WhiteElo "2298"]
[BlackElo "2216"]
[Result "0-1"]
[Round "02"]
[TimeControl "180+2"]
[Date "2023.05.09"]
[WhiteClock "0:00:46"]
[BlackClock "0:00:39"]

1. e4 {[%clk 0:03:00]}  g6 {[%clk 0:03:00]} 2. d4 {[%clk 0:02:59]}  Bg7 {[%clk 0:03:00]} 3. Nc3 {[%clk 0:02:59]}  d6 {[%clk 0:03:01]} 4. Be2 {[%clk 0:02:59]}  a6 {[%clk 0:03:00]} 5. h4 {[%clk 0:02:56]}  h5 {[%clk 0:03:00]} 6. a4 {[%clk 0:02:56]}  Nd7 {[%clk 0:02:59]} 7. Bg5 {[%clk 0:02:52]}  Ngf6 {[%clk 0:02:59]} 8. f4 {[%clk 0:02:45]}  c5 {[%clk 0:02:59]} 9. e5 {[%clk 0:02:45]}  cxd4 {[%clk 0:02:38]} 10. exf6 {[%clk 0:02:43]}  exf6 {[%clk 0:02:38]} 11. Qxd4 {[%clk 0:02:43]}  O-O {[%clk 0:02:38]} 12. Qxd6 {[%clk 0:02:42]}  fxg5 {[%clk 0:02:38]} 13. hxg5 {[%clk 0:02:42]}  Qa5 {[%clk 0:02:29]} 14. Ra3 {[%clk 0:02:36]}  Nc5 {[%clk 0:02:14]} 15. Bxh5 {[%clk 0:01:45]}  Ne4 {[%clk 0:01:55]} 16. Qd3 {[%clk 0:01:36]}  Nxc3 {[%clk 0:01:53]} 17. bxc3 {[%clk 0:01:34]}  gxh5 {[%clk 0:01:50]} 18. Rxh5 {[%clk 0:01:33]}  Bf5 {[%clk 0:01:47]} 19. Qg3 {[%clk 0:01:27]}  Rfe8+ {[%clk 0:01:45]} 20. Kf1 {[%clk 0:01:27]}  Rad8 {[%clk 0:01:36]} 21. Nf3 {[%clk 0:01:26]}  Rd1+ {[%clk 0:01:29]} 22. Kf2 {[%clk 0:01:26]}  Qc5+ {[%clk 0:01:24]} 23. Nd4 {[%clk 0:01:26]}  Qxa3 {[%clk 0:00:53]} 24. Nxf5 {[%clk 0:01:24]}  Qc5+ {[%clk 0:00:53]} 25. Nd4 {[%clk 0:01:19]}  Bxd4+ {[%clk 0:00:48]} 26. cxd4 {[%clk 0:01:19]}  Qxd4+ {[%clk 0:00:49]} 27. Kf3 {[%clk 0:01:19]}  Re3+ {[%clk 0:00:43]} 28. Kg4 {[%clk 0:01:19]}  Qd7+ {[%clk 0:00:41]} 29. Kh4 {[%clk 0:00:46]}  Rh1+ {[%clk 0:00:39]} 0-1


[Site "https://www.chess.com"]

[Event "Titled Tuesday Blitz May 9 Late 2023"]
[White "Omranalhosani21"]
[Black "Marcziter, Dmitrii"]
[BlackFideId "13900765"]
[WhiteElo "2607"]
[BlackElo "2162"]
[Result "1-0"]
[Round "02"]
[TimeControl "180+2"]
[Date "2023.05.09"]
[WhiteClock "0:00:03"]
[BlackClock "0:00:00"]

1. e4 {[%clk 0:02:58]}  c5 {[%clk 0:02:58]} 2. Nf3 {[%clk 0:02:58]}  a6 {[%clk 0:02:58]} 3. Bd3 {[%clk 0:02:58]}  b5 {[%clk 0:02:56]} 4. c3 {[%clk 0:02:58]}  c4 {[%clk 0:02:55]} 5. Bc2 {[%clk 0:02:58]}  Bb7 {[%clk 0:02:55]} 6. O-O {[%clk 0:02:59]}  Nc6 {[%clk 0:02:52]} 7. Re1 {[%clk 0:02:51]}  e6 {[%clk 0:02:52]} 8. a4 {[%clk 0:02:47]}  Bc5 {[%clk 0:02:48]} 9. b4 {[%clk 0:02:37]}  Bb6 {[%clk 0:02:44]} 10. Na3 {[%clk 0:02:21]}  Na7 {[%clk 0:02:39]} 11. d4 {[%clk 0:02:09]}  cxd3 {[%clk 0:02:38]} 12. Bxd3 {[%clk 0:02:09]}  Nf6 {[%clk 0:02:28]} 13. Bg5 {[%clk 0:01:58]}  h6 {[%clk 0:02:23]} 14. Bh4 {[%clk 0:01:43]}  g5 {[%clk 0:02:15]} 15. Bg3 {[%clk 0:01:43]}  O-O {[%clk 0:02:00]} 16. h4 {[%clk 0:01:28]}  g4 {[%clk 0:01:40]} 17. Nh2 {[%clk 0:01:21]}  h5 {[%clk 0:01:39]} 18. Bd6 {[%clk 0:01:05]}  Re8 {[%clk 0:01:37]} 19. Qd2 {[%clk 0:00:57]}  Nh7 {[%clk 0:01:33]} 20. Qf4 {[%clk 0:00:53]}  Qf6 {[%clk 0:01:29]} 21. a5 {[%clk 0:00:41]}  Bd8 {[%clk 0:01:12]} 22. c4 {[%clk 0:00:16]}  Bc6 {[%clk 0:01:03]} 23. cxb5 {[%clk 0:00:15]}  Nxb5 {[%clk 0:01:02]} 24. Nxb5 {[%clk 0:00:15]}  Bxb5 {[%clk 0:01:01]} 25. Bxb5 {[%clk 0:00:15]}  axb5 {[%clk 0:01:01]} 26. Rac1 {[%clk 0:00:12]}  Qxf4 {[%clk 0:00:56]} 27. Bxf4 {[%clk 0:00:12]}  Be7 {[%clk 0:00:54]} 28. Bd2 {[%clk 0:00:10]}  Bxh4 {[%clk 0:00:50]} 29. Rc7 {[%clk 0:00:10]}  Red8 {[%clk 0:00:49]} 30. g3 {[%clk 0:00:08]}  Be7 {[%clk 0:00:45]} 31. Nf1 {[%clk 0:00:06]}  Bd6 {[%clk 0:00:43]} 32. Rb7 {[%clk 0:00:07]}  Rab8 {[%clk 0:00:35]} 33. Rxb8 {[%clk 0:00:07]}  Rxb8 {[%clk 0:00:32]} 34. Rc1 {[%clk 0:00:06]}  Nf6 {[%clk 0:00:25]} 35. Re1 {[%clk 0:00:04]}  Be5 {[%clk 0:00:23]} 36. Ne3 {[%clk 0:00:04]}  d6 {[%clk 0:00:19]} 37. Ng2 {[%clk 0:00:03]}  Rc8 {[%clk 0:00:12]} 38. Nf4 {[%clk 0:00:03]}  Rc2 {[%clk 0:00:11]} 39. Bc1 {[%clk 0:00:02]}  Ra2 {[%clk 0:00:10]} 40. Nd3 {[%clk 0:00:02]}  Bd4 {[%clk 0:00:09]} 41. Be3 {[%clk 0:00:02]}  Bxe3 {[%clk 0:00:05]} 42. Rxe3 {[%clk 0:00:03]}  Nd7 {[%clk 0:00:04]} 43. e5 {[%clk 0:00:03]}  dxe5 {[%clk 0:00:02]} 44. Nxe5 {[%clk 0:00:03]}  Nf6 {[%clk 0:00:00]} 45. Rc3 {[%clk 0:00:03]} 1-0


[Site "https://www.chess.com"]

[Event "Titled Tuesday Blitz May 9 Late 2023"]
[White "Sattarov, Bobir"]
[Black "Fernandez Siles, Luis"]
[WhiteFideId "14203081"]
[BlackFideId "2209420"]
[WhiteElo "2351"]
[BlackElo "2195"]
[Result "1-0"]
[Round "02"]
[TimeControl "180+2"]
[Date "2023.05.09"]
[WhiteClock "0:01:39"]
[BlackClock "0:00:00"]

1. e4 {[%clk 0:03:00]}  c5 {[%clk 0:02:59]} 2. Nf3 {[%clk 0:03:00]}  Nc6 {[%clk 0:03:00]} 3. d4 {[%clk 0:03:01]}  cxd4 {[%clk 0:03:00]} 4. Nxd4 {[%clk 0:03:02]}  Nf6 {[%clk 0:03:01]} 5. Nc3 {[%clk 0:03:01]}  e5 {[%clk 0:03:02]} 6. Nb3 {[%clk 0:03:01]}  Bb4 {[%clk 0:03:01]} 7. Bc4 {[%clk 0:03:02]}  O-O {[%clk 0:02:54]} 8. Qd3 {[%clk 0:03:02]}  a6 {[%clk 0:02:36]} 9. O-O {[%clk 0:03:00]}  b5 {[%clk 0:02:34]} 10. Bd5 {[%clk 0:03:00]}  Bb7 {[%clk 0:02:23]} 11. Bg5 {[%clk 0:02:53]}  h6 {[%clk 0:02:23]} 12. Bh4 {[%clk 0:02:53]}  Qe7 {[%clk 0:02:14]} 13. Rad1 {[%clk 0:02:51]}  g5 {[%clk 0:02:12]} 14. Bg3 {[%clk 0:02:51]}  Nh5 {[%clk 0:02:07]} 15. Qf3 {[%clk 0:02:47]}  Nf4 {[%clk 0:01:56]} 16. Bxf4 {[%clk 0:02:44]}  exf4 {[%clk 0:01:50]} 17. Bxc6 {[%clk 0:02:42]}  dxc6 {[%clk 0:01:45]} 18. Nd4 {[%clk 0:02:42]}  Qf6 {[%clk 0:01:32]} 19. Nf5 {[%clk 0:02:39]}  Rfd8 {[%clk 0:01:21]} 20. g3 {[%clk 0:02:31]}  Bxc3 {[%clk 0:01:09]} 21. Qxc3 {[%clk 0:02:26]}  Qxc3 {[%clk 0:01:06]} 22. bxc3 {[%clk 0:02:27]}  Kh7 {[%clk 0:01:01]} 23. Nd6 {[%clk 0:02:24]}  Rd7 {[%clk 0:00:49]} 24. c4 {[%clk 0:02:23]}  c5 {[%clk 0:00:44]} 25. e5 {[%clk 0:02:20]}  Rad8 {[%clk 0:00:34]} 26. Rb1 {[%clk 0:02:14]}  b4 {[%clk 0:00:32]} 27. a3 {[%clk 0:02:13]}  a5 {[%clk 0:00:32]} 28. axb4 {[%clk 0:02:13]}  axb4 {[%clk 0:00:33]} 29. c3 {[%clk 0:02:14]}  Ba6 {[%clk 0:00:13]} 30. cxb4 {[%clk 0:02:13]}  cxb4 {[%clk 0:00:14]} 31. Rxb4 {[%clk 0:02:10]}  f6 {[%clk 0:00:15]} 32. Rb6 {[%clk 0:02:10]}  fxe5 {[%clk 0:00:15]} 33. Ne4 {[%clk 0:02:06]}  Bxc4 {[%clk 0:00:14]} 34. Nf6+ {[%clk 0:02:06]}  Kg7 {[%clk 0:00:14]} 35. Nxd7 {[%clk 0:02:06]}  Rxd7 {[%clk 0:00:14]} 36. Re1 {[%clk 0:02:01]}  Re7 {[%clk 0:00:12]} 37. gxf4 {[%clk 0:01:58]}  gxf4 {[%clk 0:00:11]} 38. f3 {[%clk 0:01:58]}  Bd5 {[%clk 0:00:10]} 39. Kf2 {[%clk 0:01:58]}  e4 {[%clk 0:00:09]} 40. fxe4 {[%clk 0:01:57]}  Rxe4 {[%clk 0:00:08]} 41. Rg1+ {[%clk 0:01:55]}  Kf7 {[%clk 0:00:06]} 42. Rxh6 {[%clk 0:01:53]}  f3 {[%clk 0:00:05]} 43. Re1 {[%clk 0:01:49]}  Rg4 {[%clk 0:00:03]} 44. Rh5 {[%clk 0:01:39]}  Rg2+ {[%clk 0:00:00]} 45. Ke3 {[%clk 0:01:39]} 1-0


[Site "https://www.chess.com"]

[Event "Titled Tuesday Blitz May 9 Late 2023"]
[White "Qiao, Cindy"]
[Black "Santos Ruiz, Miguel"]
[WhiteFideId "2620243"]
[BlackFideId "22291482"]
[WhiteElo "1777"]
[BlackElo "2499"]
[Result "0-1"]
[Round "02"]
[TimeControl "180+2"]
[Date "2023.05.09"]
[WhiteClock "0:00:00"]
[BlackClock "0:00:20"]

1. d4 {[%clk 0:03:00]}  c6 {[%clk 0:03:00]} 2. Bf4 {[%clk 0:03:00]}  d6 {[%clk 0:03:00]} 3. e4 {[%clk 0:03:00]}  Nd7 {[%clk 0:02:55]} 4. Nf3 {[%clk 0:02:59]}  Ngf6 {[%clk 0:02:50]} 5. Nc3 {[%clk 0:02:59]}  g6 {[%clk 0:02:26]} 6. Qd2 {[%clk 0:02:59]}  Qa5 {[%clk 0:02:18]} 7. O-O-O {[%clk 0:02:33]}  Bg7 {[%clk 0:02:07]} 8. Kb1 {[%clk 0:02:32]}  O-O {[%clk 0:02:01]} 9. Bh6 {[%clk 0:02:31]}  e5 {[%clk 0:01:50]} 10. h4 {[%clk 0:02:29]}  Bxh6 {[%clk 0:01:44]} 11. Qxh6 {[%clk 0:02:29]}  Ng4 {[%clk 0:01:45]} 12. Qd2 {[%clk 0:02:28]}  h5 {[%clk 0:01:42]} 13. Ng5 {[%clk 0:02:00]}  exd4 {[%clk 0:01:35]} 14. Qxd4 {[%clk 0:02:00]}  Qc5 {[%clk 0:01:35]} 15. Qxc5 {[%clk 0:01:41]}  Nxc5 {[%clk 0:01:35]} 16. Rd2 {[%clk 0:01:41]}  Rd8 {[%clk 0:01:16]} 17. f3 {[%clk 0:01:41]}  Ne5 {[%clk 0:01:11]} 18. Be2 {[%clk 0:01:37]}  Kf8 {[%clk 0:00:59]} 19. Rhd1 {[%clk 0:01:34]}  f6 {[%clk 0:00:56]} 20. f4 {[%clk 0:01:10]}  Ng4 {[%clk 0:00:52]} 21. Nf3 {[%clk 0:00:53]}  Ke7 {[%clk 0:00:52]} 22. e5 {[%clk 0:00:36]}  fxe5 {[%clk 0:00:37]} 23. fxe5 {[%clk 0:00:27]}  d5 {[%clk 0:00:36]} 24. Ng5 {[%clk 0:00:20]}  Nxe5 {[%clk 0:00:19]} 25. Nce4 {[%clk 0:00:16]}  Nxe4 {[%clk 0:00:19]} 26. Nxe4 {[%clk 0:00:17]}  Bf5 {[%clk 0:00:19]} 27. Ng3 {[%clk 0:00:16]}  Bg4 {[%clk 0:00:19]} 28. Bxg4 {[%clk 0:00:15]}  Nxg4 {[%clk 0:00:20]} 29. Re1+ {[%clk 0:00:14]}  Kd7 {[%clk 0:00:20]} 30. Rde2 {[%clk 0:00:13]}  Re8 {[%clk 0:00:21]} 31. b3 {[%clk 0:00:06]}  Rxe2 {[%clk 0:00:21]} 32. Rxe2 {[%clk 0:00:06]}  Re8 {[%clk 0:00:21]} 33. Rd2 {[%clk 0:00:06]}  Re3 {[%clk 0:00:21]} 34. Ne2 {[%clk 0:00:04]}  Nf6 {[%clk 0:00:20]} 35. Nf4 {[%clk 0:00:00]}  Ne4 {[%clk 0:00:20]} 0-1


[Site "https://www.chess.com"]

[Event "Titled Tuesday Blitz May 9 Late 2023"]
[White "Gerbelli Neto, Eduardo"]
[Black "Simonian, Hrair"]
[WhiteFideId "2103281"]
[BlackFideId "13302337"]
[WhiteElo "2178"]
[BlackElo "2447"]
[Result "0-1"]
[Round "02"]
[TimeControl "180+2"]
[Date "2023.05.09"]
[WhiteClock "0:00:10"]
[BlackClock "0:00:17"]

1. e4 {[%clk 0:03:00]}  c5 {[%clk 0:02:59]} 2. Nc3 {[%clk 0:03:00]}  c4 {[%clk 0:03:00]} 3. Bxc4 {[%clk 0:02:59]}  d6 {[%clk 0:02:59]} 4. d3 {[%clk 0:02:58]}  Nc6 {[%clk 0:02:58]} 5. f4 {[%clk 0:02:57]}  g6 {[%clk 0:02:58]} 6. Nf3 {[%clk 0:02:56]}  Bg7 {[%clk 0:02:57]} 7. O-O {[%clk 0:02:56]}  e6 {[%clk 0:02:54]} 8. Qe1 {[%clk 0:02:56]}  Nge7 {[%clk 0:02:55]} 9. Bb3 {[%clk 0:02:57]}  O-O {[%clk 0:02:55]} 10. Qh4 {[%clk 0:02:56]}  Bd7 {[%clk 0:02:50]} 11. f5 {[%clk 0:02:54]}  gxf5 {[%clk 0:02:41]} 12. Bg5 {[%clk 0:02:42]}  Qb6+ {[%clk 0:01:52]} 13. Kh1 {[%clk 0:02:42]}  Ng6 {[%clk 0:01:51]} 14. Qh5 {[%clk 0:02:41]}  Nd4 {[%clk 0:01:45]} 15. Nxd4 {[%clk 0:02:35]}  Bxd4 {[%clk 0:01:44]} 16. exf5 {[%clk 0:02:34]}  Bxc3 {[%clk 0:01:33]} 17. bxc3 {[%clk 0:02:23]}  exf5 {[%clk 0:01:32]} 18. Bf6 {[%clk 0:02:08]}  d5 {[%clk 0:01:32]} 19. Bd4 {[%clk 0:02:04]}  Qd6 {[%clk 0:01:30]} 20. Rf3 {[%clk 0:01:34]}  f6 {[%clk 0:01:21]} 21. Re1 {[%clk 0:01:25]}  Rae8 {[%clk 0:01:15]} 22. Ref1 {[%clk 0:01:09]}  Re7 {[%clk 0:01:14]} 23. Rg3 {[%clk 0:01:02]}  Rg7 {[%clk 0:01:01]} 24. Qf3 {[%clk 0:00:57]}  Be6 {[%clk 0:00:55]} 25. Re1 {[%clk 0:00:55]}  Kh8 {[%clk 0:00:43]} 26. Be3 {[%clk 0:00:37]}  f4 {[%clk 0:00:41]} 27. Bxf4 {[%clk 0:00:34]}  Qxf4 {[%clk 0:00:40]} 28. Rxg6 {[%clk 0:00:25]}  Qxf3 {[%clk 0:00:38]} 29. gxf3 {[%clk 0:00:26]}  Rxg6 {[%clk 0:00:37]} 30. Rxe6 {[%clk 0:00:26]}  Rfg8 {[%clk 0:00:34]} 31. Re1 {[%clk 0:00:26]}  Rg5 {[%clk 0:00:33]} 32. f4 {[%clk 0:00:23]}  Rf5 {[%clk 0:00:29]} 33. h3 {[%clk 0:00:21]}  b6 {[%clk 0:00:26]} 34. Kh2 {[%clk 0:00:20]}  Rxf4 {[%clk 0:00:24]} 35. Bxd5 {[%clk 0:00:20]}  Rf2+ {[%clk 0:00:25]} 36. Kh1 {[%clk 0:00:20]}  Rd8 {[%clk 0:00:25]} 37. Bc4 {[%clk 0:00:18]}  Rxc2 {[%clk 0:00:23]} 38. Re7 {[%clk 0:00:18]}  Rxc3 {[%clk 0:00:22]} 39. Rxa7 {[%clk 0:00:17]}  f5 {[%clk 0:00:19]} 40. Kg2 {[%clk 0:00:17]}  Rc1 {[%clk 0:00:16]} 41. Kf3 {[%clk 0:00:18]}  Rf1+ {[%clk 0:00:16]} 42. Ke3 {[%clk 0:00:18]}  f4+ {[%clk 0:00:16]} 43. Ke4 {[%clk 0:00:18]}  Re8+ {[%clk 0:00:16]} 44. Kf5 {[%clk 0:00:15]}  f3 {[%clk 0:00:16]} 45. Kg4 {[%clk 0:00:12]}  f2 {[%clk 0:00:16]} 46. d4 {[%clk 0:00:11]}  Rg1+ {[%clk 0:00:15]} 47. Kh5 {[%clk 0:00:12]}  f1=Q {[%clk 0:00:16]} 48. Bxf1 {[%clk 0:00:12]}  Rxf1 {[%clk 0:00:17]} 49. Rb7 {[%clk 0:00:10]}  Rf5+ {[%clk 0:00:17]} 0-1


[Site "https://www.chess.com"]

[Event "Titled Tuesday Blitz May 9 Late 2023"]
[White "Iliaguev, Nisim"]
[Black "Rangel, Daniel"]
[WhiteFideId "2817276"]
[BlackFideId "2124475"]
[WhiteElo "2241"]
[BlackElo "2256"]
[Result "1-0"]
[Round "02"]
[TimeControl "180+2"]
[Date "2023.05.09"]
[WhiteClock "0:00:23"]
[BlackClock "0:00:11"]

1. d4 {[%clk 0:02:48]}  Nf6 {[%clk 0:02:56]} 2. g3 {[%clk 0:02:48]}  g6 {[%clk 0:02:57]} 3. Bg2 {[%clk 0:02:48]}  Bg7 {[%clk 0:02:58]} 4. e4 {[%clk 0:02:49]}  O-O {[%clk 0:02:59]} 5. Ne2 {[%clk 0:02:49]}  c5 {[%clk 0:02:59]} 6. c3 {[%clk 0:02:49]}  cxd4 {[%clk 0:02:59]} 7. cxd4 {[%clk 0:02:50]}  d5 {[%clk 0:02:59]} 8. e5 {[%clk 0:02:50]}  Nfd7 {[%clk 0:02:57]} 9. O-O {[%clk 0:02:50]}  Nb6 {[%clk 0:02:57]} 10. Nbc3 {[%clk 0:02:50]}  Bg4 {[%clk 0:02:56]} 11. h3 {[%clk 0:02:50]}  Bxe2 {[%clk 0:02:56]} 12. Qxe2 {[%clk 0:02:51]}  e6 {[%clk 0:02:57]} 13. f4 {[%clk 0:02:51]}  Nc6 {[%clk 0:02:58]} 14. Be3 {[%clk 0:02:51]}  Nc4 {[%clk 0:02:58]} 15. Rad1 {[%clk 0:02:50]}  Nxe3 {[%clk 0:02:55]} 16. Qxe3 {[%clk 0:02:51]}  Qb6 {[%clk 0:02:54]} 17. b3 {[%clk 0:02:47]}  Rfc8 {[%clk 0:02:54]} 18. Kh2 {[%clk 0:02:42]}  Bf8 {[%clk 0:02:49]} 19. g4 {[%clk 0:02:39]}  Bh6 {[%clk 0:02:18]} 20. Qf2 {[%clk 0:02:19]}  Nxd4 {[%clk 0:02:06]} 21. Na4 {[%clk 0:02:19]}  Qc7 {[%clk 0:01:40]} 22. Rxd4 {[%clk 0:02:16]}  g5 {[%clk 0:01:30]} 23. fxg5 {[%clk 0:01:39]}  Bg7 {[%clk 0:01:30]} 24. Kh1 {[%clk 0:01:34]}  Bxe5 {[%clk 0:01:25]} 25. Rd2 {[%clk 0:01:32]}  Qe7 {[%clk 0:01:19]} 26. h4 {[%clk 0:01:29]}  Bc7 {[%clk 0:01:17]} 27. Nb2 {[%clk 0:01:24]}  Rf8 {[%clk 0:01:16]} 28. Nd3 {[%clk 0:01:23]}  Bb6 {[%clk 0:01:01]} 29. Qf6 {[%clk 0:01:22]}  Qxf6 {[%clk 0:01:00]} 30. gxf6 {[%clk 0:01:22]}  Rfc8 {[%clk 0:01:00]} 31. g5 {[%clk 0:01:19]}  Rc3 {[%clk 0:00:59]} 32. Ne5 {[%clk 0:01:12]}  Rac8 {[%clk 0:00:55]} 33. h5 {[%clk 0:00:58]}  Be3 {[%clk 0:00:54]} 34. Re2 {[%clk 0:00:42]}  Bxg5 {[%clk 0:00:52]} 35. Rf3 {[%clk 0:00:29]}  Rxf3 {[%clk 0:00:44]} 36. Nxf3 {[%clk 0:00:29]}  Bxf6 {[%clk 0:00:44]} 37. Bh3 {[%clk 0:00:28]}  Rc1+ {[%clk 0:00:39]} 38. Kg2 {[%clk 0:00:29]}  Rb1 {[%clk 0:00:39]} 39. Rc2 {[%clk 0:00:29]}  Rb2 {[%clk 0:00:39]} 40. Rxb2 {[%clk 0:00:29]}  Bxb2 {[%clk 0:00:39]} 41. Kf2 {[%clk 0:00:30]}  h6 {[%clk 0:00:35]} 42. Ke3 {[%clk 0:00:29]}  Kf8 {[%clk 0:00:34]} 43. Nh2 {[%clk 0:00:24]}  Ke7 {[%clk 0:00:32]} 44. Ng4 {[%clk 0:00:25]}  Bg7 {[%clk 0:00:29]} 45. Bf1 {[%clk 0:00:25]}  f5 {[%clk 0:00:27]} 46. Nh2 {[%clk 0:00:23]}  e5 {[%clk 0:00:27]} 47. Nf3 {[%clk 0:00:24]}  e4 {[%clk 0:00:20]} 48. Nh4 {[%clk 0:00:21]}  Bf6 {[%clk 0:00:14]} 49. Nxf5+ {[%clk 0:00:21]}  Ke6 {[%clk 0:00:14]} 50. Nd4+ {[%clk 0:00:20]}  Ke5 {[%clk 0:00:15]} 51. Ne2 {[%clk 0:00:19]}  d4+ {[%clk 0:00:12]} 52. Kf2 {[%clk 0:00:17]}  d3 {[%clk 0:00:12]} 53. Ng3 {[%clk 0:00:18]}  Bh4 {[%clk 0:00:13]} 54. Kg2 {[%clk 0:00:16]}  Bxg3 {[%clk 0:00:12]} 55. Kxg3 {[%clk 0:00:17]}  e3 {[%clk 0:00:12]} 56. Bxd3 {[%clk 0:00:17]}  Kd4 {[%clk 0:00:12]} 57. Be2 {[%clk 0:00:17]}  Kc3 {[%clk 0:00:12]} 58. Kf3 {[%clk 0:00:18]}  Kb2 {[%clk 0:00:10]} 59. Kxe3 {[%clk 0:00:18]}  Kxa2 {[%clk 0:00:11]} 60. Bc4 {[%clk 0:00:19]}  Ka3 {[%clk 0:00:09]} 61. Ke4 {[%clk 0:00:19]}  Kb4 {[%clk 0:00:10]} 62. Kf5 {[%clk 0:00:20]}  a5 {[%clk 0:00:10]} 63. Bf7 {[%clk 0:00:19]}  b5 {[%clk 0:00:08]} 64. Kg6 {[%clk 0:00:19]}  Kc3 {[%clk 0:00:04]} 65. Kxh6 {[%clk 0:00:19]}  a4 {[%clk 0:00:04]} 66. b4 {[%clk 0:00:19]}  Kxb4 {[%clk 0:00:03]} 67. Kg6 {[%clk 0:00:20]}  Kc3 {[%clk 0:00:04]} 68. h6 {[%clk 0:00:20]}  b4 {[%clk 0:00:05]} 69. h7 {[%clk 0:00:21]}  b3 {[%clk 0:00:06]} 70. h8=Q+ {[%clk 0:00:22]}  Kc2 {[%clk 0:00:06]} 71. Kf6 {[%clk 0:00:21]}  Kb2 {[%clk 0:00:07]} 72. Ke6+ {[%clk 0:00:21]}  Ka3 {[%clk 0:00:08]} 73. Qa1+ {[%clk 0:00:21]}  Kb4 {[%clk 0:00:08]} 74. Kd5 {[%clk 0:00:21]}  a3 {[%clk 0:00:09]} 75. Kd4 {[%clk 0:00:21]}  b2 {[%clk 0:00:10]} 76. Qa2 {[%clk 0:00:22]}  Ka4 {[%clk 0:00:10]} 77. Bb3+ {[%clk 0:00:22]}  Kb4 {[%clk 0:00:10]} 78. Bc2 {[%clk 0:00:22]}  b1=Q {[%clk 0:00:11]} 79. Qxb1+ {[%clk 0:00:22]}  Ka5 {[%clk 0:00:11]} 80. Kc5 {[%clk 0:00:23]}  Ka6 {[%clk 0:00:11]} 81. Qb6# {[%clk 0:00:23]} 1-0


[Site "https://www.chess.com"]

[Event "Titled Tuesday Blitz May 9 Late 2023"]
[White "Korchmar, Vasiliy"]
[Black "Malicka, Maria"]
[WhiteFideId "24131750"]
[BlackFideId "1197576"]
[WhiteElo "2370"]
[BlackElo "2227"]
[Result "0-1"]
[Round "02"]
[TimeControl "180+2"]
[Date "2023.05.09"]
[WhiteClock "0:00:13"]
[BlackClock "0:01:08"]

1. e4 {[%clk 0:02:55]}  c5 {[%clk 0:02:59]} 2. Nf3 {[%clk 0:02:55]}  d6 {[%clk 0:02:59]} 3. d4 {[%clk 0:02:56]}  cxd4 {[%clk 0:03:00]} 4. Nxd4 {[%clk 0:02:56]}  Nf6 {[%clk 0:03:00]} 5. Nc3 {[%clk 0:02:57]}  a6 {[%clk 0:03:00]} 6. Be2 {[%clk 0:02:57]}  e6 {[%clk 0:03:00]} 7. Be3 {[%clk 0:02:56]}  Be7 {[%clk 0:03:00]} 8. g4 {[%clk 0:02:55]}  h6 {[%clk 0:02:54]} 9. Qd2 {[%clk 0:02:53]}  b5 {[%clk 0:02:53]} 10. a3 {[%clk 0:02:52]}  Bb7 {[%clk 0:02:54]} 11. f3 {[%clk 0:02:50]}  Nbd7 {[%clk 0:02:54]} 12. h4 {[%clk 0:02:49]}  Rc8 {[%clk 0:02:54]} 13. O-O-O {[%clk 0:02:46]}  Ne5 {[%clk 0:02:49]} 14. g5 {[%clk 0:02:46]}  Nfd7 {[%clk 0:02:42]} 15. f4 {[%clk 0:02:43]}  Nc4 {[%clk 0:02:41]} 16. Bxc4 {[%clk 0:02:43]}  Rxc4 {[%clk 0:02:42]} 17. g6 {[%clk 0:02:43]}  Nc5 {[%clk 0:02:36]} 18. gxf7+ {[%clk 0:02:42]}  Kxf7 {[%clk 0:02:36]} 19. Qe2 {[%clk 0:02:33]}  Qa5 {[%clk 0:02:30]} 20. Rhg1 {[%clk 0:02:05]}  Rxc3 {[%clk 0:02:26]} 21. Qh5+ {[%clk 0:02:05]}  Kf8 {[%clk 0:02:19]} 22. Rxg7 {[%clk 0:01:41]}  Kxg7 {[%clk 0:02:08]} 23. Nf5+ {[%clk 0:01:41]}  Kf8 {[%clk 0:01:53]} 24. Nxh6 {[%clk 0:00:57]}  Rxc2+ {[%clk 0:01:31]} 25. Kb1 {[%clk 0:00:57]}  Rh7 {[%clk 0:01:22]} 26. Bxc5 {[%clk 0:00:34]}  Bxe4 {[%clk 0:01:19]} 27. Ka1 {[%clk 0:00:24]}  Rxc5 {[%clk 0:01:14]} 28. f5 {[%clk 0:00:13]}  Bf6 {[%clk 0:01:08]} 0-1


[Site "https://www.chess.com"]

[Event "Titled Tuesday Blitz May 9 Late 2023"]
[White "Hnydiuk, Aleksander"]
[Black "Senft, Sean"]
[WhiteFideId "1109057"]
[BlackFideId "2044960"]
[WhiteElo "2374"]
[BlackElo "1989"]
[Result "1-0"]
[Round "02"]
[TimeControl "180+2"]
[Date "2023.05.09"]
[WhiteClock "0:02:07"]
[BlackClock "0:02:20"]

1. e4 {[%clk 0:03:00]}  c5 {[%clk 0:02:58]} 2. Nf3 {[%clk 0:02:59]}  d6 {[%clk 0:02:59]} 3. d4 {[%clk 0:02:59]}  cxd4 {[%clk 0:03:00]} 4. Nxd4 {[%clk 0:02:59]}  Nf6 {[%clk 0:03:00]} 5. Nc3 {[%clk 0:03:00]}  a6 {[%clk 0:03:01]} 6. f3 {[%clk 0:02:57]}  e5 {[%clk 0:03:00]} 7. Nb3 {[%clk 0:02:58]}  a5 {[%clk 0:03:01]} 8. Bb5+ {[%clk 0:02:54]}  Nbd7 {[%clk 0:03:00]} 9. Be3 {[%clk 0:02:52]}  Be7 {[%clk 0:03:00]} 10. Qe2 {[%clk 0:02:49]}  O-O {[%clk 0:03:00]} 11. O-O-O {[%clk 0:02:50]}  Qc7 {[%clk 0:03:00]} 12. g4 {[%clk 0:02:46]}  Nc5 {[%clk 0:03:00]} 13. g5 {[%clk 0:02:45]}  Nxb3+ {[%clk 0:02:54]} 14. axb3 {[%clk 0:02:44]}  Nh5 {[%clk 0:02:54]} 15. Nd5 {[%clk 0:02:43]}  Qd8 {[%clk 0:02:55]} 16. Bb6 {[%clk 0:02:43]}  Nf4 {[%clk 0:02:38]} 17. Qe1 {[%clk 0:02:10]}  Ng2 {[%clk 0:02:20]} 18. Bxd8 {[%clk 0:02:07]} 1-0


[Site "https://www.chess.com"]

[Event "Titled Tuesday Blitz May 9 Late 2023"]
[White "Stachanczyk, Jacek"]
[Black "Bruedigam, Martin"]
[WhiteFideId "1116657"]
[BlackFideId "24608033"]
[WhiteElo "2084"]
[BlackElo "2331"]
[Result "0-1"]
[Round "02"]
[TimeControl "180+2"]
[Date "2023.05.09"]
[WhiteClock "0:02:08"]
[BlackClock "0:02:30"]

1. e4 {[%clk 0:02:58]}  c6 {[%clk 0:03:00]} 2. d4 {[%clk 0:02:54]}  d5 {[%clk 0:03:01]} 3. Nc3 {[%clk 0:02:52]}  dxe4 {[%clk 0:03:00]} 4. Nxe4 {[%clk 0:02:53]}  Bf5 {[%clk 0:02:59]} 5. Ng3 {[%clk 0:02:52]}  Bg6 {[%clk 0:03:00]} 6. h4 {[%clk 0:02:52]}  h6 {[%clk 0:03:00]} 7. Nf3 {[%clk 0:02:52]}  Nd7 {[%clk 0:03:00]} 8. h5 {[%clk 0:02:52]}  Bh7 {[%clk 0:03:00]} 9. Bd3 {[%clk 0:02:53]}  Bxd3 {[%clk 0:02:59]} 10. Qxd3 {[%clk 0:02:54]}  e6 {[%clk 0:03:00]} 11. Bd2 {[%clk 0:02:51]}  Ngf6 {[%clk 0:03:00]} 12. O-O-O {[%clk 0:02:51]}  Be7 {[%clk 0:03:00]} 13. Ne4 {[%clk 0:02:50]}  Nxe4 {[%clk 0:02:59]} 14. Qxe4 {[%clk 0:02:51]}  Nf6 {[%clk 0:02:59]} 15. Qe2 {[%clk 0:02:50]}  Qd5 {[%clk 0:02:57]} 16. Kb1 {[%clk 0:02:50]}  Qe4 {[%clk 0:02:57]} 17. Be3 {[%clk 0:02:51]}  Nd5 {[%clk 0:02:39]} 18. Ne5 {[%clk 0:02:32]}  O-O {[%clk 0:02:36]} 19. g4 {[%clk 0:02:15]}  Rad8 {[%clk 0:02:32]} 20. Rd3 {[%clk 0:02:08]}  Qxh1+ {[%clk 0:02:30]} 0-1


[Site "https://www.chess.com"]